bitfinex/quotes_SOLUSD_20220311
["timestamp","ask_amount","ask_price","bid_price","bid_amount"]
[1646973644824,6.0,81.079,81.018,6.0]
[1646973646023,6.0,81.079,81.017,6.0]
[1646973647023,6.0,81.079,81.018,3.04447957]
[1646973647222,6.0,81.079,81.02,18.5033]
[1646973647422,6.0,81.089,81.021,6.0]
[1646973647623,12.168,81.089,81.021,13.51253064]
[1646973647925,12.168,81.089,81.022,7.51253064]
[1646973648223,12.168,81.089,81.023,6.0]
[1646973648425,12.168,81.089,81.022,7.51253064]
[1646973648825,12.168,81.089,81.021,7.51253064]
[1646973650028,12.168,81.089,81.022,6.0]
[1646973650225,12.168,81.089,81.021,7.51253064]
[1646973650426,12.168,81.089,81.023,7.51253064]
[1646973650827,12.168,81.089,81.021,7.51253064]
[1646973651026,12.168,81.089,81.022,6.0]
[1646973651230,18.5056,81.08,81.021,7.51253064]
[1646973651430,6.0,81.079,81.021,7.51253064]
[1646973651627,6.0,81.079,81.019,7.51253064]
[1646973652531,6.0,81.079,81.02,6.0]
[1646973652928,6.0,81.079,81.021,7.51253064]
[1646973653329,6.0,81.079,81.019,7.51253064]
[1646973653951,6.168,81.078,81.02,6.0]
[1646973654249,6.0,81.077,81.019,7.51253064]
[1646973654449,6.168,81.076,81.021,7.51253064]
[1646973654648,6.0,81.075,81.021,7.51253064]
[1646973654848,6.0,81.075,81.019,7.51253064]
[1646973655249,6.0,81.078,81.02,6.0]
[1646973655448,6.168,81.077,81.02,6.0]
[1646973655649,6.0,81.076,81.02,6.0]
[1646973655850,6.168,81.075,81.021,7.51253064]
[1646973656050,6.0,81.074,81.022,6.0]
[1646973656652,6.0,81.078,81.022,6.0]
[1646973656952,6.168,81.077,81.019,6.0]
[1646973657151,6.0,81.076,81.019,6.0]
[1646973657451,6.168,81.075,81.02,7.51253608]
[1646973657654,6.0,81.074,81.021,6.0]
[1646973657853,6.0,81.074,81.02,7.51253608]
[1646973658254,6.0,81.078,81.022,3.04447957]
[1646973658454,6.168,81.098,81.023,6.0]
[1646973658655,6.168,81.108,81.023,54.46564981]
[1646973658858,6.0,81.107,81.024,67.9303933]
[1646973659057,6.167,81.106,81.025,6.0]
[1646973659256,6.0,81.105,81.03,18.4984]
[1646973659455,6.167,81.104,81.032,50.58987379]
[1646973659655,6.0,81.103,81.033,6.0]
[1646973659858,6.167,81.102,81.033,13.51253608]
[1646973660056,6.0,81.101,81.034,23.9328]
[1646973660255,6.167,81.1,81.034,23.9328]
[1646973660456,6.0,81.099,81.034,23.9328]
[1646973660656,6.167,81.098,81.034,23.9328]
[1646973660858,6.0,81.097,81.035,7.51240385]
[1646973661056,6.167,81.096,81.035,7.51240385]
[1646973661260,6.167,81.119,81.04,18.4986]
[1646973661458,6.0,81.118,81.041,28.8316]
[1646973661659,6.166,81.117,81.041,49.91491127]
[1646973661856,6.0,81.116,81.041,52.95939084]
[1646973662057,6.166,81.115,81.042,24.12779084]
[1646973662256,6.166,81.115,81.043,6.0]
[1646973662457,6.0,81.114,81.043,9.04447957]
[1646973662658,6.166,81.113,81.045,54.78937301]
[1646973662856,6.0,81.112,81.046,6.0]
[1646973663056,6.166,81.111,81.046,9.04447957]
[1646973663256,6.0,81.11,81.05,18.4949]
[1646973663458,6.166,81.131,81.051,6.0]
[1646973663657,6.0,81.13,81.051,9.04447957]
[1646973663862,6.165,81.129,81.051,9.04447957]
[1646973664062,6.0,81.128,81.052,3.04447957]
[1646973664262,6.165,81.127,81.053,23.0813]
[1646973664461,6.0,81.126,81.053,23.0813]
[1646973664659,6.0,81.126,81.054,9.04447957]
[1646973665062,6.0,81.128,81.055,3.04447957]
[1646973665259,6.165,81.127,81.055,3.04447957]
[1646973665459,6.0,81.126,81.055,3.04447957]
[1646973666062,6.0,81.128,81.055,3.04447957]
[1646973666261,6.165,81.127,81.055,3.04447957]
[1646973666461,6.0,81.126,81.055,3.04447957]
[1646973667063,6.0,81.128,81.056,6.0]
[1646973667263,6.165,81.127,81.056,6.0]
[1646973667465,6.0,81.126,81.057,3.04447957]
[1646973667664,6.165,81.125,81.058,52.65352473]
[1646973667865,6.0,81.124,81.058,52.65352473]
[1646973668064,6.165,81.123,81.059,3.04447957]
[1646973668265,18.4961,81.12,81.059,3.04447957]
[1646973668465,12.166,81.119,81.059,3.04447957]
[1646973669065,12.166,81.119,81.06,6.0]
[1646973669268,9.666,81.119,81.059,3.04447957]
[1646973669469,9.666,81.119,81.061,3.04447957]
[1646973670166,9.666,81.119,81.062,23.053]
[1646973670567,9.666,81.119,81.063,3.04447957]
[1646973671469,6.0,81.118,81.064,6.0]
[1646973671669,6.0,81.138,81.064,13.37]
[1646973671868,6.165,81.137,81.065,3.04447957]
[1646973672069,6.0,81.136,81.066,6.0]
[1646973672267,6.165,81.135,81.07,14.54]
[1646973672470,6.0,81.134,81.072,60.29664011]
[1646973672667,6.0,81.134,81.073,6.0]
[1646973673069,6.0,81.144,81.073,6.0]
[1646973673269,6.0,81.145,81.073,6.0]
[1646973674367,6.0,81.145,81.073,11.56]
[1646973674970,6.0,81.144,81.08,18.4892]
[1646973675168,6.164,81.158,81.09,14.54]
[1646973675370,6.163,81.18,81.091,68.81230609]
[1646973675671,12.163,81.18,81.091,71.85678566]
[1646973675868,12.163,81.18,81.091,68.81230609]
[1646973676169,30.646,81.18,81.1,18.4834]
[1646973676370,30.646,81.18,81.101,29.1163]
[1646973676570,59.48598405,81.18,81.101,32.16077957]
[1646973676768,59.48598405,81.18,81.101,29.1163]
[1646973676969,59.48598405,81.18,81.102,3.04447957]
[1646973677173,59.48598405,81.18,81.104,55.11440267]
[1646973677574,59.48598405,81.18,81.105,3.04447957]
[1646973683577,59.48598405,81.18,81.104,55.11440267]
[1646973683978,27.68620958,81.179,81.104,55.11440267]
[1646973684282,18.4892,81.16,81.104,55.11440267]
[1646973684478,6.0,81.159,81.104,55.11440267]
[1646973685979,18.4853,81.17,81.104,55.11440267]
[1646973686279,12.162,81.169,81.104,55.11440267]
[1646973686479,35.6789,81.169,81.104,55.11440267]
[1646973687903,18.4871,81.16,81.104,55.11440267]
[1646973688104,6.0,81.159,81.104,55.11440267]
[1646973688704,6.162,81.158,81.104,55.11440267]
[1646973688907,6.0,81.157,81.104,55.11440267]
[1646973689505,6.0,81.158,81.104,55.11440267]
[1646973689704,6.162,81.157,81.104,55.11440267]
[1646973689906,6.0,81.156,81.104,55.11440267]
[1646973690506,6.0,81.167,81.104,55.11440267]
[1646973690708,6.162,81.166,81.104,55.11440267]
[1646973690909,6.0,81.165,81.104,55.11440267]
[1646973691106,6.162,81.164,81.104,55.11440267]
[1646973691306,18.4871,81.16,81.104,55.11440267]
[1646973691507,12.162,81.159,81.104,55.11440267]
[1646973698017,12.162,81.159,81.105,6.0]
[1646973698418,12.162,81.159,81.104,55.11440267]
[1646973699819,6.0,81.159,81.104,55.11440267]
[1646973701824,18.4893,81.15,81.104,55.11440267]
[1646973702023,6.0,81.149,81.081,3.04447957]
[1646973702225,6.164,81.148,81.05,24.1402]
[1646973702425,6.0,81.147,81.067,3.04447957]
[1646973702625,6.164,81.146,81.058,3.04447957]
[1646973702830,6.0,81.145,81.058,3.04447957]
[1646973703126,18.4919,81.14,81.072,77.66550229]
[1646973703325,6.0,81.139,81.072,77.66550229]
[1646973703827,6.0,81.139,81.073,24.6402]
[1646973704027,6.0,81.142,81.073,24.6402]
[1646973705028,18.4966,81.12,81.073,24.6402]
[1646973705230,6.0,81.119,81.073,24.6402]
[1646973706056,18.4944,81.13,81.073,24.6402]
[1646973706256,6.0,81.129,81.073,24.6402]
[1646973707059,6.0,81.129,81.074,3.04447957]
[1646973708563,6.165,81.142,81.074,3.04447957]
[1646973708761,6.0,81.141,81.074,3.04447957]
[1646973708962,6.164,81.14,81.074,3.04447957]
[1646973709165,6.0,81.139,81.074,3.04447957]
[1646973709362,6.164,81.138,81.075,6.0]
[1646973709565,6.0,81.137,81.075,6.0]
[1646973709761,6.0,81.137,81.076,3.04447957]
[1646973710164,6.0,81.142,81.08,18.4902]
[1646973710564,12.164,81.154,81.081,9.04447957]
[1646973710964,12.164,81.154,81.082,3.04447957]
[1646973711169,12.164,81.154,81.083,6.0]
[1646973711464,12.164,81.154,81.084,3.04447957]
[1646973711665,12.164,81.154,81.085,6.0]
[1646973712064,12.164,81.154,81.086,26.35207957]
[1646973712264,12.164,81.154,81.09,18.4869]
[1646973712670,12.164,81.154,81.091,3.04447957]
[1646973714367,18.4893,81.15,81.091,3.04447957]
[1646973714568,12.163,81.149,81.086,23.3076]
[1646973715370,6.0,81.149,81.086,23.3076]
[1646973715570,6.0,81.157,81.087,9.04447957]
[1646973715771,6.163,81.176,81.09,14.54]
[1646973715972,6.0,81.175,81.091,6.25]
[1646973716170,6.162,81.174,81.091,6.25]
[1646973716373,6.0,81.173,81.091,9.29447957]
[1646973716571,6.162,81.172,81.092,3.04447957]
[1646973716773,6.0,81.171,81.111,52.76506788]
[1646973716971,6.0,81.171,81.112,22.7319]
[1646973717371,6.0,81.176,81.112,22.7319]
[1646973718571,6.0,81.176,81.113,6.0]
[1646973719173,6.0,81.176,81.112,22.7319]
[1646973719573,6.0,81.179,81.112,22.7319]
[1646973719771,6.16,81.178,81.112,22.7319]
[1646973719971,6.0,81.177,81.112,22.7319]
[1646973720171,6.16,81.176,81.112,22.7319]
[1646973720373,6.0,81.175,81.112,22.7319]
[1646973720572,6.16,81.174,81.112,22.7319]
[1646973720774,6.0,81.173,81.112,22.7319]
[1646973721375,6.0,81.178,81.112,22.7319]
[1646973721574,6.16,81.177,81.112,22.7319]
[1646973721773,6.0,81.176,81.112,22.7319]
[1646973721973,6.16,81.175,81.112,22.7319]
[1646973722174,6.0,81.174,81.112,22.7319]
[1646973722775,6.0,81.177,81.112,22.7319]
[1646973723174,6.0,81.178,81.112,22.7319]
[1646973726974,6.16,81.177,81.112,22.7319]
[1646973727175,6.0,81.176,81.112,22.7319]
[1646973727776,6.0,81.177,81.112,22.7319]
[1646973727978,6.16,81.176,81.112,22.7319]
[1646973728180,6.0,81.175,81.112,22.7319]
[1646973728780,6.0,81.177,81.112,22.7319]
[1646973728978,6.16,81.176,81.112,22.7319]
[1646973729180,6.0,81.175,81.112,22.7319]
[1646973729779,6.0,81.177,81.112,22.7319]
[1646973729980,6.16,81.176,81.112,22.7319]
[1646973730179,6.0,81.175,81.112,22.7319]
[1646973730380,6.0,81.175,81.112,25.77637957]
[1646973730784,6.0,81.177,81.112,25.77637957]
[1646973730983,6.16,81.176,81.112,25.77637957]
[1646973731183,6.0,81.175,81.112,25.77637957]
[1646973731581,6.16,81.174,81.112,25.77637957]
[1646973731782,6.0,81.173,81.112,25.77637957]
[1646973732409,6.0,81.177,81.112,25.77637957]
[1646973732709,6.16,81.176,81.112,25.77637957]
[1646973732909,6.0,81.175,81.112,25.77637957]
[1646973733109,6.16,81.174,81.112,25.77637957]
[1646973733408,6.0,81.173,81.112,25.77637957]
[1646973733608,6.16,81.172,81.112,25.77637957]
[1646973733809,6.0,81.171,81.112,25.77637957]
[1646973734011,6.162,81.17,81.112,25.77637957]
[1646973734209,6.0,81.169,81.112,25.77637957]
[1646973734808,6.0,81.177,81.112,25.77637957]
[1646973735008,18.485,81.17,81.112,22.7319]
[1646973735209,6.0,81.169,81.112,22.7319]
[1646973735412,6.162,81.168,81.112,22.7319]
[1646973735608,6.0,81.167,81.112,22.7319]
[1646973735811,6.162,81.166,81.112,22.7319]
[1646973736010,18.4872,81.16,81.112,22.7319]
[1646973736211,12.162,81.159,81.112,22.7319]
[1646973736412,6.162,81.159,81.04,61.05]
[1646973736616,6.0,81.158,81.053,45.06109161]
[1646973736812,6.164,81.157,81.073,21.17967957]
[1646973737011,6.0,81.156,81.073,21.17967957]
[1646973737212,6.164,81.155,81.074,64.17292034]
[1646973737413,6.0,81.154,81.074,64.17292034]
[1646973737614,6.164,81.153,81.074,64.17292034]
[1646973737815,6.0,81.152,81.075,23.3616]
[1646973738013,6.164,81.151,81.075,23.3616]
[1646973738216,24.4907,81.15,81.075,23.3616]
[1646973738418,6.164,81.149,81.075,26.40607957]
[1646973738615,6.0,81.148,81.075,23.3616]
[1646973738818,6.164,81.147,81.075,23.3616]
[1646973739016,6.0,81.146,81.075,26.40607957]
[1646973739218,6.164,81.145,81.075,26.40607957]
[1646973739415,6.0,81.144,81.075,26.40607957]
[1646973739615,6.164,81.143,81.075,26.40607957]
[1646973739818,6.0,81.142,81.075,26.40607957]
[1646973740022,6.164,81.141,81.075,26.40607957]
[1646973740221,18.4943,81.13,81.075,26.40607957]
[1646973740421,6.0,81.129,81.075,26.40607957]
[1646973740623,6.0,81.129,81.075,23.3616]
[1646973741025,6.165,81.128,81.075,23.3616]
[1646973741225,6.0,81.127,81.075,23.3616]
[1646973741424,18.4966,81.12,81.061,23.461]
[1646973741622,12.165,81.119,81.061,23.461]
[1646973742022,12.165,81.119,81.062,53.64676749]
[1646973743125,18.5008,81.11,81.062,53.64676749]
[1646973743424,6.0,81.109,81.062,53.64676749]
[1646973746630,12.166,81.109,81.062,53.64676749]
[1646973747731,6.0,81.109,81.062,53.64676749]
[1646973749035,6.166,81.129,81.07,118.84397431]
[1646973749235,6.166,81.143,81.07,118.84397431]
[1646973749432,6.38909106,81.179,81.07,118.84397431]
[1646973749433,6.164,81.15,81.09,18.4852]
[1646973749635,6.164,81.15,81.091,53.73806172]
[1646973749837,18.4829,81.18,81.091,82.11234375]
[1646973750037,6.39493223,81.179,81.092,3.04447957]
[1646973750235,6.39493223,81.179,81.092,28.37428203]
[1646973750436,6.0,81.178,81.092,3.04447957]
[1646973750635,6.0,81.178,81.093,53.7214]
[1646973750636,18.4861,81.17,81.093,53.7214]
[1646973750836,6.0,81.169,81.093,53.7214]
[1646973751056,34.83998405,81.169,81.093,47.7214]
[1646973751256,38.04646362,81.168,81.093,47.7214]
[1646973751459,38.04646362,81.168,81.091,53.73806172]
[1646973751460,6.0,81.167,81.091,53.73806172]
[1646973751657,6.163,81.166,81.091,53.73806172]
[1646973751859,6.0,81.165,81.064,22.9699]
[1646973752058,6.164,81.164,81.064,22.9699]
[1646973752261,14.54,81.16,81.064,22.9699]
[1646973752460,12.164,81.159,81.064,22.9699]
[1646973752859,18.4919,81.15,81.065,49.98207931]
[1646973753061,12.164,81.149,81.065,49.98207931]
[1646973753262,41.00398405,81.149,81.065,49.98207931]
[1646973753659,28.83998405,81.148,81.065,49.98207931]
[1646973753858,36.3901,81.147,81.065,49.98207931]
[1646973754060,6.0,81.146,81.065,49.98207931]
[1646973754260,6.164,81.145,81.065,49.98207931]
[1646973754459,6.0,81.144,81.065,49.98207931]
[1646973754659,6.164,81.143,81.065,49.98207931]
[1646973754861,18.4922,81.14,81.07,18.4942]
[1646973755059,12.164,81.139,81.07,18.4942]
[1646973755259,12.164,81.139,81.065,49.98207931]
[1646973755859,18.4941,81.13,81.065,49.98207931]
[1646973756060,6.0,81.129,81.065,53.02655888]
[1646973757061,6.0,81.129,81.07,18.4939]
[1646973758664,12.165,81.129,81.07,18.4939]
[1646973760765,6.0,81.129,81.07,18.4939]
[1646973761266,6.0,81.129,81.071,3.04447957]
[1646973761466,6.0,81.129,81.07,18.4939]
[1646973761666,6.0,81.129,81.071,6.0]
[1646973761966,6.0,81.129,81.07,18.4939]
[1646973762165,18.4961,81.12,81.065,49.98207931]
[1646973762366,6.0,81.119,81.065,49.98207931]
[1646973763869,6.0,81.119,81.066,6.0]
[1646973764069,6.0,81.119,81.065,49.98207931]
[1646973764471,12.165,81.129,81.065,49.98207931]
[1646973764870,12.165,81.129,81.07,18.4942]
[1646973765571,12.165,81.129,81.065,49.98207931]
[1646973766573,23.4639,81.128,81.065,49.98207931]
[1646973766772,12.165,81.127,81.065,49.98207931]
[1646973766974,12.165,81.127,81.07,18.4941]
[1646973767375,12.165,81.127,81.065,49.98207931]
[1646973767773,18.4968,81.12,81.065,49.98207931]
[1646973767977,6.0,81.119,81.065,49.98207931]
[1646973773179,18.4988,81.11,81.065,49.98207931]
[1646973773580,6.0,81.109,81.065,49.98207931]
[1646973773779,6.0,81.119,81.065,49.98207931]
[1646973774181,6.0,81.126,81.065,49.98207931]
[1646973774380,18.4969,81.12,81.065,49.98207931]
[1646973774579,12.165,81.119,81.065,49.98207931]
[1646973775381,18.5014,81.11,81.065,49.98207931]
[1646973775581,6.0,81.109,81.065,49.98207931]
[1646973779082,18.5009,81.1,81.065,49.98207931]
[1646973779282,6.0,81.099,81.064,22.9699]
[1646973779884,6.0,81.116,81.064,22.9699]
[1646973780184,6.165,81.115,81.064,22.9699]
[1646973780385,6.0,81.114,81.065,64.46296144]
[1646973780683,6.166,81.113,81.065,64.46296144]
[1646973780886,6.0,81.112,81.065,64.46296144]
[1646973781085,18.4992,81.11,81.065,64.46296144]
[1646973781284,6.0,81.109,81.065,64.46296144]
[1646973781489,12.166,81.109,81.065,64.46296144]
[1646973781885,12.166,81.109,81.064,22.9699]
[1646973782889,12.166,81.109,81.065,58.45331344]
[1646973785713,6.0,81.109,81.065,58.45331344]
[1646973790723,18.501,81.1,81.064,22.9699]
[1646973790922,6.0,81.099,81.064,22.9699]
[1646973791521,6.0,81.116,81.064,22.9699]
[1646973791723,6.165,81.115,81.065,61.97091399]
[1646973791922,18.501,81.1,81.065,61.97091399]
[1646973793623,6.0,81.099,81.065,61.97091399]
[1646973795323,6.0,81.099,81.064,22.9699]
[1646973795524,18.5031,81.09,81.064,22.9699]
[1646973795724,6.0,81.089,81.064,22.9699]
[1646973795925,6.167,81.098,81.064,22.9699]
[1646973796126,6.0,81.097,81.064,22.9699]
[1646973796325,6.166,81.096,81.064,22.9699]
[1646973796524,6.0,81.095,81.064,22.9699]
[1646973797134,18.505,81.09,81.064,22.9699]
[1646973797329,6.0,81.089,81.064,22.9699]
[1646973801336,6.0,81.098,81.064,22.9699]
[1646973801533,6.166,81.097,81.064,22.9699]
[1646973801733,6.0,81.096,81.064,22.9699]
[1646973801934,6.166,81.095,81.064,22.9699]
[1646973802135,6.0,81.094,81.064,22.9699]
[1646973802533,6.0,81.098,81.064,22.9699]
[1646973802933,6.0,81.099,81.064,22.9699]
[1646973805936,6.166,81.098,81.064,22.9699]
[1646973806137,6.0,81.097,81.064,22.9699]
[1646973806536,6.0,81.098,81.064,22.9699]
[1646973808139,6.0,81.109,81.064,22.9699]
[1646973814376,6.166,81.108,81.064,22.9699]
[1646973814577,6.0,81.107,81.064,22.9699]
[1646973814774,6.166,81.106,81.064,22.9699]
[1646973814975,6.0,81.105,81.064,22.9699]
[1646973815175,6.166,81.104,81.064,22.9699]
[1646973815374,6.0,81.103,81.064,22.9699]
[1646973815975,6.0,81.108,81.064,22.9699]
[1646973816176,6.166,81.107,81.064,22.9699]
[1646973816377,6.0,81.106,81.064,22.9699]
[1646973816576,6.166,81.105,81.064,22.9699]
[1646973816776,6.0,81.104,81.064,22.9699]
[1646973816978,6.166,81.103,81.064,22.9699]
[1646973817178,6.0,81.102,81.064,22.9699]
[1646973817380,18.5026,81.1,81.034,27.42571537]
[1646973817580,12.167,81.099,81.047,24.049]
[1646973817779,12.167,81.099,81.021,81.33637957]
[1646973817979,12.167,81.099,81.021,78.2919]
[1646973817980,41.00698405,81.099,81.021,78.2919]
[1646973818583,41.00698405,81.099,81.027,60.32688601]
[1646973819080,18.5064,81.09,81.027,60.32688601]
[1646973819279,37.1177,81.089,81.028,24.049]
[1646973819481,6.0,81.088,81.028,24.049]
[1646973819686,6.168,81.087,81.028,24.049]
[1646973819880,6.0,81.086,81.028,24.049]
[1646973820081,18.5071,81.08,81.028,24.049]
[1646973820286,6.0,81.079,81.028,24.049]
[1646973823189,18.5079,81.07,81.028,24.049]
[1646973823388,6.0,81.069,81.028,24.049]
[1646973823991,6.0,81.077,81.028,24.049]
[1646973824193,6.168,81.076,81.028,24.049]
[1646973824392,6.0,81.075,81.028,24.049]
[1646973824992,6.0,81.078,81.028,24.049]
[1646973825193,6.0,81.078,81.029,3.04447957]
[1646973825392,28.7338,81.107,81.029,10.56291381]
[1646973825592,28.7338,81.107,81.03,42.47884511]
[1646973825796,6.167,81.106,81.03,77.42299472]
[1646973825992,6.0,81.105,81.031,27.42571537]
[1646973826194,6.167,81.104,81.032,6.0]
[1646973826393,6.0,81.103,81.032,33.42571537]
[1646973826592,6.167,81.102,81.033,34.94414961]
[1646973826792,6.0,81.101,81.033,34.94414961]
[1646973826992,6.167,81.1,81.034,40.94414961]
[1646973827193,6.0,81.099,81.04,18.5009]
[1646973827395,6.167,81.098,81.041,56.46481189]
[1646973827593,6.0,81.097,81.041,56.46481189]
[1646973827796,6.167,81.096,81.041,56.46481189]
[1646973827996,6.0,81.095,81.042,22.9506]
[1646973828494,6.0,81.098,81.042,22.9506]
[1646973828695,6.167,81.097,81.042,22.9506]
[1646973828896,6.0,81.096,81.042,22.9506]
[1646973829096,6.167,81.095,81.042,22.9506]
[1646973829298,6.0,81.094,81.042,22.9506]
[1646973829498,6.167,81.093,81.042,22.9506]
[1646973829716,6.0,81.092,81.042,22.9506]
[1646973829920,6.167,81.091,81.042,22.9506]
[1646973830120,6.0,81.09,81.042,22.9506]
[1646973830520,6.0,81.098,81.042,22.9506]
[1646973830718,6.167,81.097,81.042,22.9506]
[1646973830921,6.0,81.096,81.042,22.9506]
[1646973831218,6.167,81.095,81.042,22.9506]
[1646973831419,6.0,81.094,81.042,22.9506]
[1646973831618,6.167,81.093,81.042,22.9506]
[1646973831819,6.0,81.092,81.042,22.9506]
[1646973832018,6.0,81.094,81.042,22.9506]
[1646973832420,6.0,81.099,81.042,22.9506]
[1646973832619,18.5033,81.09,81.042,22.9506]
[1646973832820,6.0,81.089,81.042,22.9506]
[1646973833622,6.0,81.106,81.042,22.9506]
[1646973834423,18.5013,81.1,81.042,22.9506]
[1646973834623,6.0,81.099,81.05,18.499]
[1646973835025,6.0,81.13,81.051,9.04447957]
[1646973835224,6.165,81.129,81.051,41.17173982]
[1646973835524,6.0,81.128,81.052,10.56785736]
[1646973835723,6.165,81.127,81.071,54.09843698]
[1646973835928,6.0,81.126,81.072,23.9613]
[1646973836124,6.165,81.125,81.073,6.0]
[1646973836326,6.0,81.124,81.072,23.9613]
[1646973836525,18.4964,81.12,81.072,23.9613]
[1646973836724,12.165,81.119,81.072,23.9613]
[1646973836926,6.165,81.119,81.072,23.9613]
[1646973837126,6.0,81.118,81.072,23.9613]
[1646973837335,6.165,81.117,81.072,23.9613]
[1646973837533,6.0,81.116,81.072,23.9613]
[1646973837736,6.165,81.115,81.072,23.9613]
[1646973837933,18.4991,81.11,81.072,23.9613]
[1646973838134,6.0,81.109,81.072,23.9613]
[1646973838735,6.165,81.108,81.072,23.9613]
[1646973838935,6.0,81.107,81.072,23.9613]
[1646973839333,18.5008,81.1,81.072,23.9613]
[1646973839534,6.0,81.099,81.072,23.9613]
[1646973843943,6.166,81.098,81.072,23.9613]
[1646973844245,6.0,81.097,81.072,23.9613]
[1646973844444,6.166,81.096,81.072,87.24130533]
[1646973844644,6.0,81.095,81.072,87.24130533]
[1646973845246,6.166,81.099,81.072,87.24130533]
[1646973845247,6.0,81.098,81.072,87.24130533]
[1646973845447,6.166,81.097,81.072,87.24130533]
[1646973845645,6.0,81.096,81.072,87.24130533]
[1646973846245,6.0,81.098,81.072,87.24130533]
[1646973846446,6.166,81.097,81.072,87.24130533]
[1646973846645,6.0,81.096,81.072,87.24130533]
[1646973846845,6.166,81.095,81.072,87.24130533]
[1646973847046,6.0,81.094,81.072,87.24130533]
[1646973847645,6.0,81.109,81.072,87.24130533]
[1646973848870,18.5008,81.1,81.072,87.24130533]
[1646973849072,6.0,81.099,81.072,87.24130533]
[1646973850075,6.166,81.124,81.072,87.24130533]
[1646973850277,6.0,81.123,81.08,18.4926]
[1646973850475,6.0,81.141,81.08,18.4926]
[1646973850673,6.164,81.14,81.08,18.4926]
[1646973850874,6.0,81.139,81.08,18.4926]
[1646973851076,6.164,81.138,81.08,18.4926]
[1646973851278,18.494,81.13,81.072,63.28000533]
[1646973851473,18.494,81.13,81.073,23.4184]
[1646973851474,12.165,81.129,81.073,23.4184]
[1646973852873,12.165,81.129,81.08,18.4928]
[1646973853375,6.0,81.129,81.08,18.4928]
[1646973853573,6.0,81.139,81.08,18.4928]
[1646973856881,18.4939,81.13,81.08,18.4928]
[1646973857079,12.164,81.129,81.08,18.4928]
[1646973861285,6.0,81.129,81.08,18.4928]
[1646973861487,6.0,81.129,81.073,23.4184]
[1646973861687,6.165,81.128,81.073,23.4184]
[1646973861988,6.0,81.127,81.073,23.4184]
[1646973862187,6.165,81.126,81.073,23.4184]
[1646973862388,6.0,81.125,81.073,23.4184]
[1646973862987,6.0,81.142,81.073,23.4184]
[1646973863189,18.4963,81.12,81.073,23.4184]
[1646973863387,6.0,81.119,81.073,23.4184]
[1646973867092,12.165,81.129,81.073,23.4184]
[1646973872597,12.165,81.129,81.08,18.4933]
[1646973875803,6.0,81.129,81.073,23.4184]
[1646973879002,30.2372,81.128,81.073,23.4184]
[1646973879203,6.0,81.127,81.073,23.4184]
[1646973879404,6.165,81.126,81.073,23.4184]
[1646973879606,6.0,81.125,81.073,23.4184]
[1646973879805,6.165,81.124,81.073,23.4184]
[1646973880006,6.0,81.123,81.073,23.4184]
[1646973880505,6.0,81.126,81.073,23.4184]
[1646973880705,6.165,81.125,81.073,23.4184]